bitfinex/quotes_SOLUSD_20250831
["timestamp","ask_amount","ask_price","bid_price","bid_amount"]
[1756661968430,4.46747857,205.4,205.39,0.03]
[1756661968617,10.04602774,205.4,205.39,0.03]
[1756661969130,11.99815174,205.4,205.39,0.03]
[1756661969334,1.952124,205.4,205.39,0.03]
[1756661969512,37.84,205.4,205.39,0.03]
[1756661970211,37.84,205.4,205.39,0.75]
[1756661971343,176.70747857,205.4,205.39,0.75]
[1756661972015,172.22,205.4,205.39,0.75]
[1756661973439,176.68747857,205.4,205.39,0.03]
[1756661974119,176.68747857,205.4,205.39,0.71]
[1756661975516,172.22,205.4,205.39,0.71]
[1756661976220,179.96842892,205.4,205.39,0.71]
[1756661977142,179.96842892,205.4,205.39,0.03]
[1756661979240,175.50095035,205.4,205.39,0.71]
[1756661979542,175.50095035,205.4,205.39,0.03]
[1756661979543,179.96842892,205.4,205.39,0.03]
[1756661980245,175.50095035,205.4,205.39,0.03]
[1756661980453,179.96842892,205.4,205.39,0.71]
[1756661980636,137.68095035,205.4,205.39,0.71]
[1756661980948,134.4,205.4,205.39,5.17747857]
[1756661981536,0.06,205.41,205.39,5.17747857]
[1756661981732,0.06,205.41,205.39,4.49747857]
[1756661981925,0.06,205.41,205.4,5.54854917]
[1756661982358,0.06,205.41,205.4,10.01602774]
[1756661986673,0.06,205.41,205.4,5.54854917]
[1756661988972,0.06,205.41,205.4,10.01602774]
[1756661989736,0.06,205.41,205.4,10.04602774]
[1756661994665,0.06,205.41,205.4,20.12205474]
[1756661994876,0.06,205.41,205.4,10.04602774]
[1756661996362,0.06,205.41,205.4,5.57854917]
[1756661996672,0.06,205.41,205.4,10.04602774]
[1756661998480,0.06,205.41,205.4,11.99729474]
[1756662000375,0.06,205.44,205.43,26.0]
[1756662000582,0.06,205.44,205.43,44.06307258]
[1756662000758,0.06,205.44,205.43,44.74307258]
[1756662001481,0.06,205.44,205.43,46.69386358]
[1756662002377,0.06,205.44,205.43,51.56170177]
[1756662002875,0.06,205.44,205.43,89.34170177]
[1756662003567,0.06,205.44,205.43,51.56170177]
[1756662003884,0.06,205.44,205.43,89.34170177]
[1756662004057,0.06,205.44,205.43,51.56170177]
[1756662004571,0.06,205.44,205.43,89.34170177]
[1756662005782,0.06,205.44,205.43,51.56170177]
[1756662005983,0.06,205.44,205.43,89.34170177]
[1756662007471,0.06,205.44,205.43,84.8742232]
[1756662007663,0.06,205.44,205.43,89.34170177]
[1756662008578,0.06,205.46,205.43,89.34170177]
[1756662008780,0.06,205.46,205.45,18.06307258]
[1756662008982,0.06,205.46,205.45,55.84307258]
[1756662009170,0.06,205.46,205.45,57.79357858]
[1756662009483,0.06,205.46,205.45,58.47357858]
[1756662010180,0.06,205.46,205.45,63.3409429]
[1756662010395,0.73,205.46,205.45,20.41346433]
[1756662010576,0.06,205.46,205.45,24.8809429]
[1756662011271,0.73,205.46,205.45,4.86736432]
[1756662011476,0.73,205.46,205.44,9.33504744]
[1756662011691,0.67,205.45,205.43,6.81876959]
[1756662011885,0.06,205.46,205.43,6.81876959]
[1756662012090,0.67,205.44,205.43,4.86778859]
[1756662012307,0.67,205.44,205.43,9.39526759]
[1756662012480,0.67,205.44,205.43,4.86778859]
[1756662015580,0.67,205.44,205.42,9.3955198]
[1756662015779,0.67,205.43,205.42,9.3955198]
[1756662017493,0.67,205.43,205.42,4.527478]
[1756662019279,0.67,205.43,205.42,9.39555316]
[1756662020908,0.06,205.46,205.42,9.39555316]
[1756662021203,0.67,205.45,205.42,13.86303173]
[1756662021610,0.06,205.46,205.43,4.46747857]
[1756662021809,0.67,205.45,205.42,8.99495657]
[1756662022014,0.67,205.45,205.42,9.67495657]
[1756662022313,0.06,205.46,205.42,9.67495657]
[1756662022501,0.73,205.46,205.42,9.67495657]
[1756662022800,0.73,205.46,205.42,14.54300489]
[1756662023004,0.73,205.46,205.43,4.46747857]
[1756662023302,0.73,205.46,205.44,4.86760124]
[1756662024307,0.67,205.45,205.43,9.33527471]
[1756662024727,0.67,205.45,205.43,4.86779614]
[1756662031607,0.67,205.45,205.43,9.33527471]
[1756662034014,0.67,205.45,205.43,4.86779614]
[1756662034210,0.66,205.44,205.42,4.527478]
[1756662034710,0.66,205.43,205.41,0.03]
[1756662034895,3.5302717,205.43,205.41,0.03]
[1756662035096,2.8702717,205.42,205.41,0.03]
[1756662035515,3.5302717,205.42,205.41,0.03]
[1756662036117,5.14757094,205.42,205.41,0.03]
[1756662037907,0.66,205.42,205.41,0.03]
[1756662039523,5.14757094,205.42,205.41,0.03]
[1756662041011,0.66,205.42,205.41,0.03]
[1756662041307,1.951552,205.44,205.41,0.03]
[1756662041308,41.70022002,205.43,205.41,0.03]
[1756662041623,42.90757094,205.43,205.41,0.03]
[1756662041933,0.66,205.43,205.41,0.03]
[1756662042113,172.88,205.45,205.41,5.17757094]
[1756662042320,172.88,205.45,205.42,5.14757094]
[1756662043413,172.88,205.45,205.42,10.01550386]
[1756662043916,135.12,205.45,205.42,9.35550386]
[1756662044109,134.46,205.45,205.42,10.01550386]
[1756662044314,134.46,205.45,205.43,0.66]
[1756662044508,135.12,205.45,205.42,4.86793292]
[1756662046127,0.66,205.44,205.41,4.8983112]
[1756662046429,139.60757094,205.45,205.41,5.5583112]
[1756662047438,135.12,205.45,205.42,0.66]
[1756662047732,0.66,205.44,205.41,4.8983112]
[1756662047915,138.94757094,205.45,205.41,4.8983112]
[1756662048115,0.66,205.44,205.41,4.8983112]
[1756662048837,0.66,205.43,205.41,0.03]
[1756662049337,138.94757094,205.45,205.41,0.03]
[1756662049521,139.60757094,205.45,205.41,0.03]
[1756662049706,0.66,205.44,205.41,0.03]
[1756662054741,0.66,205.44,205.41,5.55818028]
[1756662055745,0.66,205.44,205.41,4.89818028]
[1756662056045,0.66,205.44,205.41,8.4291441]
[1756662059249,0.72,205.44,205.41,8.4291441]
[1756662059448,0.72,205.44,205.41,5.55818028]
[1756662059949,38.46,205.44,205.41,0.69]
[1756662060241,2.87096382,205.42,205.41,0.03]
[1756662060442,40.61096382,205.42,205.41,0.03]
[1756662060639,41.27096382,205.42,205.41,0.03]
[1756662061745,38.4,205.42,205.41,0.03]
[1756662061925,42.8875094,205.42,205.41,0.03]
[1756662062544,38.4,205.42,205.41,0.03]
[1756662063121,2.701648,205.44,205.41,0.03]
[1756662063329,37.8,205.44,205.42,4.4875094]
[1756662063528,37.8,205.44,205.41,0.03]
[1756662063729,37.8,205.44,205.42,5.1475094]
[1756662064338,37.8,205.44,205.42,10.01549288]
[1756662064750,0.06,205.44,205.42,9.35549288]
[1756662064961,0.06,205.44,205.43,5.1475094]
[1756662065260,0.06,205.44,205.43,14.5030024]
[1756662066263,0.75,205.44,205.43,9.355493]
[1756662066437,0.06,205.44,205.43,14.22333119]
[1756662067858,0.06,205.44,205.43,18.71084059]
[1756662069956,0.06,205.44,205.43,14.22333119]
[1756662070154,0.75,205.44,205.42,26.0]
[1756662070330,0.69,205.43,205.42,26.0]
[1756662070966,5.1775094,205.43,205.42,26.0]
[1756662072067,5.1775094,205.43,205.41,0.03]
[1756662072965,0.69,205.42,205.41,0.03]
[1756662080162,42.8975094,205.42,205.41,0.03]
[1756662082174,38.41,205.42,205.41,0.03]
[1756662083850,37.72,205.42,205.41,0.03]
[1756662084470,38.41,205.42,205.41,0.03]
[1756662086173,41.68748792,205.42,205.41,0.03]
[1756662086376,46.17499732,205.42,205.41,0.03]
[1756662087378,38.41,205.42,205.41,0.03]
[1756662087873,37.72,205.42,205.41,0.03]
[1756662088073,38.41,205.42,205.41,0.03]
[1756662092164,46.1750687,205.42,205.41,0.03]
[1756662092554,48.1268117,205.42,205.41,0.03]
[1756662093276,41.6875593,205.42,205.41,0.03]
[1756662096464,43.6393023,205.42,205.41,0.03]
[1756662097881,51.37926976,205.42,205.41,0.03]
[1756662099979,52.99706867,205.42,205.41,0.03]
[1756662101685,10.78737746,205.42,205.41,0.03]
[1756662101879,48.10899351,205.42,205.41,0.03]
[1756662103191,52.97706867,205.42,205.41,0.03]
[1756662110099,48.48737746,205.42,205.41,0.03]
[1756662110268,52.97706867,205.42,205.41,0.03]
[1756662120099,51.36018205,205.42,205.41,0.03]
[1756662120600,69.04599477,205.42,205.41,0.03]
[1756662121902,55.43040076,205.42,205.41,0.03]
[1756662122109,51.34018205,205.42,205.41,0.03]
[1756662124318,51.31018205,205.42,205.41,0.03]
[1756662126281,50.65018205,205.42,205.41,0.03]
[1756662126626,40.9575593,205.42,205.41,0.03]
[1756662126787,37.68,205.42,205.41,0.75]
[1756662139492,37.68,205.42,205.41,0.03]
[1756662140307,47.694879,205.42,205.41,0.03]
[1756662140500,50.97231251,205.42,205.41,0.03]
[1756662143382,46.10423735,205.42,205.41,0.03]
[1756662144220,41.61743351,205.42,205.41,0.03]
[1756662144421,40.95743351,205.42,205.41,0.03]
[1756662145327,3.27743351,205.42,205.41,0.75]
[1756662145496,172.06,205.43,205.41,0.75]
[1756662145913,172.06,205.43,205.41,0.03]
[1756662146122,172.06,205.43,205.42,0.72]
[1756662146302,175.33868542,205.43,205.41,0.03]
[1756662146501,172.06,205.43,205.41,0.75]
[1756662147820,172.06,205.43,205.41,0.03]
[1756662148020,5.14680384,205.42,205.41,0.03]
[1756662148519,10.014879,205.42,205.41,0.03]
[1756662150520,5.14680384,205.42,205.41,0.03]
[1756662153504,9.354879,205.42,205.41,0.03]
[1756662153705,172.06,205.43,205.41,0.03]
[1756662153919,172.06,205.43,205.41,0.74]
[1756662154116,134.4,205.43,205.42,0.71]
[1756662154315,175.31773936,205.43,205.42,0.71]
[1756662156004,175.31773936,205.43,205.41,0.03]
[1756662156205,172.04,205.43,205.41,0.03]
[1756662156431,172.04,205.43,205.41,0.74]
[1756662157418,172.71,205.43,205.41,0.03]
[1756662157741,4.48680384,205.42,205.41,0.03]
[1756662158106,5.15680384,205.42,205.41,0.03]
[1756662159033,4.48680384,205.42,205.41,0.03]
[1756662159214,134.4,205.43,205.41,0.74]
[1756662159535,172.04,205.43,205.41,0.74]
[1756662160817,0.67,205.42,205.41,0.03]
[1756662161233,177.19680384,205.43,205.41,0.03]
[1756662162440,176.52680384,205.43,205.41,0.03]
[1756662162741,172.04,205.43,205.41,0.03]
[1756662163046,172.04,205.43,205.42,0.71]
[1756662163219,175.31874413,205.43,205.42,0.71]
[1756662163943,175.31874413,205.43,205.41,0.03]
[1756662164153,134.4,205.43,205.41,0.03]
[1756662164442,134.4,205.43,205.42,0.71]
[1756662164736,0.06,205.44,205.42,5.19680384]
[1756662164938,0.06,205.44,205.43,0.71]
[1756662168855,0.06,205.44,205.43,5.57783819]
[1756662169022,0.06,205.44,205.43,0.71]
[1756662169540,0.06,205.44,205.43,5.57783819]
[1756662170635,0.06,205.44,205.43,5.07783819]
[1756662170838,0.06,205.44,205.42,4.86807516]
[1756662172943,0.06,205.44,205.41,0.03]
[1756662172944,5.15680384,205.43,205.41,0.03]
[1756662173128,37.62,205.42,205.41,0.03]
[1756662173655,38.29,205.42,205.41,0.03]
[1756662174544,42.77680384,205.42,205.41,0.03]
[1756662174849,50.92473603,205.42,205.41,0.03]
[1756662177750,46.05666087,205.42,205.41,0.03]
[1756662178051,40.89985703,205.42,205.41,0.03]
[1756662178255,46.05666087,205.42,205.41,0.03]
[1756662179545,41.56985703,205.42,205.41,0.03]
[1756662179745,46.05666087,205.42,205.41,0.03]
[1756662180262,141.56864184,205.44,205.41,0.03]
[1756662180463,40.87895031,205.43,205.41,0.03]
[1756662180637,37.6,205.43,205.41,0.03]
[1756662181038,134.46,205.44,205.41,0.74]
[1756662181238,172.06,205.44,205.42,0.71]
[1756662181551,0.67,205.43,205.41,0.03]
[1756662181945,3.94911126,205.43,205.41,0.03]
[1756662182337,38.32,205.42,205.41,0.03]
[1756662183057,46.0857679,205.42,205.41,0.03]
[1756662188065,50.95384306,205.42,205.41,0.03]
[1756662192261,52.90577706,205.42,205.41,0.03]
[1756662196470,15.30577706,205.42,205.41,0.03]
[1756662196676,52.90577706,205.42,205.41,0.03]
[1756662203988,51.29169423,205.42,205.41,0.03]
[1756662207580,13.69169423,205.42,205.41,0.03]
[1756662207787,51.29169423,205.42,205.41,0.03]
[1756662207982,50.57169423,205.42,205.41,0.03]
[1756662210593,45.70361907,205.42,205.41,0.03]
[1756662210895,50.57169423,205.42,205.41,0.03]
[1756662211100,51.29169423,205.42,205.41,0.03]
[1756662214013,46.42361907,205.42,205.41,0.03]
[1756662214179,45.68361907,205.42,205.41,0.03]
[1756662214802,46.33361907,205.42,205.41,0.03]
[1756662216183,51.20169423,205.42,205.41,0.03]
[1756662216907,5.23089806,205.42,205.41,0.03]
[1756662217087,40.85896406,205.42,205.41,0.03]
[1756662219401,43.73168507,205.42,205.41,0.03]
[1756662219798,45.68342807,205.42,205.41,0.03]
[1756662222107,43.73168507,205.42,205.41,0.03]
[1756662222312,45.68342807,205.42,205.41,0.03]
[1756662222483,43.73168507,205.42,205.41,0.03]
[1756662222684,43.73168507,205.42,205.41,0.74]
[1756662223109,40.85896406,205.42,205.41,0.74]
[1756662223406,3.27896406,205.42,205.41,0.74]
[1756662223607,0.06,205.43,205.41,3.61272101]
[1756662223904,3.34544869,205.43,205.41,3.61272101]
[1756662224103,0.06,205.43,205.42,0.71]
[1756662228916,0.06,205.43,205.42,5.57807516]
[1756662232215,41.14272101,205.43,205.41,0.03]
[1756662232404,6.80195241,205.42,205.41,0.03]
[1756662232709,8.75369641,205.42,205.41,0.03]
[1756662239814,13.62177157,205.42,205.41,0.03]
[1756662240920,8.75369641,205.42,205.41,0.03]
[1756662243928,13.62177157,205.42,205.41,0.03]
[1756662246533,10.74905056,205.42,205.41,0.03]
[1756662246746,13.62177157,205.42,205.41,0.03]
[1756662250334,148.02177157,205.42,205.41,0.03]
[1756662252136,140.2809754,205.42,205.41,0.03]
[1756662252328,143.15369641,205.42,205.41,0.03]
[1756662253323,148.02177157,205.42,205.41,0.03]
[1756662254139,148.02444842,205.42,205.41,0.03]
[1756662258539,143.15637326,205.42,205.41,0.03]
[1756662260724,148.02444842,205.42,205.41,0.03]
[1756662267440,39.62444842,205.42,205.41,0.03]
[1756662270252,39.63444842,205.42,205.41,0.03]
[1756662270447,76.51444842,205.42,205.41,0.03]
[1756662270857,71.64637326,205.42,205.41,0.03]
[1756662271158,71.64637326,205.42,205.41,0.7]
[1756662272458,71.64637326,205.42,205.41,0.03]
[1756662272672,71.64637326,205.42,205.41,0.71]
[1756662272673,40.82190825,205.42,205.41,0.71]
[1756662272844,3.28190825,205.42,205.41,0.71]
[1756662277966,3.28190825,205.42,205.41,0.03]
[1756662279966,3.28190825,205.42,205.39,0.03]
[1756662280572,2.87272101,205.4,205.39,0.03]
[1756662280951,6.82462926,205.4,205.39,0.03]
[1756662282275,11.69317843,205.4,205.39,0.03]
[1756662283078,13.64520743,205.4,205.39,0.03]
[1756662283378,17.74759275,205.4,205.39,0.03]
[1756662285751,51.16520743,205.4,205.39,0.03]
[1756662297083,48.29248642,205.4,205.39,0.03]
[1756662297285,46.29665826,205.4,205.39,0.03]
[1756662297676,45.62665826,205.4,205.39,0.03]
[1756662298869,42.75393725,205.4,205.39,0.03]
[1756662299069,40.80190825,205.4,205.39,0.03]
[1756662300199,40.39272101,205.42,205.39,0.36]
[1756662300498,3.27995517,205.41,205.39,0.36]
[1756662301495,6.15267618,205.41,205.39,0.36]
[1756662301701,2.87272101,205.41,205.39,0.03]
[1756662302071,2.87272101,205.41,205.39,0.36]
[1756662303400,2.87272101,205.42,205.39,0.36]
[1756662303699,3.2805507,205.41,205.39,0.36]
[1756662303887,3.2805507,205.41,205.39,0.03]
[1756662304469,2.87272101,205.42,205.39,0.36]
[1756662304711,3.28246209,205.41,205.39,0.36]
[1756662305979,40.45272101,205.43,205.39,0.36]
[1756662306296,3.28277192,205.42,205.39,0.36]
[1756662306501,3.28277192,205.42,205.4,0.33]
[1756662306676,0.06,205.43,205.4,3.20272101]
[1756662306874,3.34243956,205.43,205.41,0.33]
[1756662307090,0.06,205.43,205.41,0.33]
[1756662307297,0.06,205.43,205.42,0.33]
[1756662307597,0.06,205.43,205.42,3.20272101]
[1756662307781,0.06,205.43,205.42,0.33]
[1756662308097,0.06,205.43,205.42,4.86807516]
[1756662308399,0.06,205.43,205.42,5.19807516]
[1756662309587,0.06,205.43,205.41,2.87272101]
[1756662309786,0.06,205.43,205.39,1.981172]
[1756662309787,0.06,205.43,205.39,7.17992915]
[1756662309993,0.06,205.43,205.4,3.20272101]
[1756662311708,3.56272101,205.42,205.39,0.03]
[1756662311926,0.06,205.43,205.39,0.03]
[1756662311927,2.93272101,205.43,205.39,0.03]
[1756662312226,0.69,205.42,205.39,0.03]
[1756662314822,3.56272101,205.42,205.39,0.03]
[1756662315117,0.06,205.43,205.39,2.90272101]
[1756662315323,3.33965382,205.43,205.39,3.23272101]
[1756662315530,4.02965382,205.43,205.39,3.23272101]
[1756662316421,4.02965382,205.43,205.39,8.10148931]
[1756662316728,3.33965382,205.43,205.39,7.77148931]
[1756662316928,0.69,205.42,205.39,0.03]
[1756662317232,3.56272101,205.42,205.39,0.03]
[1756662317407,2.87272101,205.42,205.39,0.03]
[1756662317606,0.69,205.41,205.39,0.03]
[1756662318222,0.69,205.4,205.39,0.03]
[1756662318725,3.56272101,205.4,205.39,0.03]
[1756662320334,8.43127018,205.4,205.39,0.03]
[1756662321530,3.56272101,205.4,205.39,0.03]
[1756662322112,5.17830813,205.4,205.39,0.03]
[1756662322543,10.0468573,205.4,205.39,0.03]
[1756662322848,50.82689929,205.4,205.39,0.03]
[1756662326035,52.77892829,205.4,205.39,0.03]
[1756662330421,48.29062016,205.4,205.39,0.03]
[1756662330738,52.77892829,205.4,205.39,0.03]
[1756662330930,45.26835012,205.4,205.39,0.03]
[1756662331125,45.95835012,205.4,205.39,0.03]
[1756662331515,40.78004199,205.4,205.39,0.03]
[1756662331713,45.95835012,205.4,205.39,0.03]
[1756662335852,45.26835012,205.4,205.39,0.03]
[1756662336342,45.93835012,205.4,205.39,0.03]
[1756662336541,40.78004199,205.4,205.39,0.03]
[1756662336744,3.28004199,205.4,205.39,0.03]
[1756662337121,3.34004199,205.41,205.39,0.36]
[1756662337351,3.34004199,205.41,205.39,0.03]
[1756662338033,3.34004199,205.41,205.39,0.36]
[1756662338442,3.34004199,205.41,205.39,0.03]
[1756662339445,3.34004199,205.41,205.39,0.36]
[1756662339656,0.06,205.41,205.39,0.36]
[1756662339837,3.34124707,205.41,205.39,0.36]
[1756662340348,0.06,205.41,205.39,0.03]
[1756662341227,5.15830813,205.4,205.39,0.03]
[1756662341431,4.48830813,205.4,205.39,0.03]
[1756662341732,0.06,205.41,205.39,0.03]
[1756662341733,4.54830813,205.41,205.39,0.03]
[1756662341963,4.48830813,205.4,205.39,0.03]
[1756662342125,5.21830813,205.41,205.39,0.03]
[1756662342637,4.54830813,205.41,205.39,0.03]
[1756662343149,0.06,205.41,205.39,0.03]
[1756662343449,3.34181967,205.41,205.39,0.03]
[1756662344440,0.73,205.41,205.39,0.03]
[1756662344639,4.01193087,205.41,205.39,0.03]
[1756662344836,0.67,205.4,205.39,0.03]
[1756662345043,4.54830813,205.41,205.39,0.03]
[1756662345363,0.06,205.41,205.39,0.03]
[1756662345524,3.34203247,205.41,205.39,0.03]
[1756662345926,4.01203247,205.41,205.39,0.03]
[1756662346652,0.73,205.41,205.39,0.03]
[1756662352159,0.67,205.4,205.39,0.03]
[1756662353354,2.93199397,205.41,205.39,0.03]
[1756662353537,3.60199397,205.41,205.39,0.03]
[1756662354363,0.67,205.4,205.39,0.03]
[1756662356763,6.82600436,205.4,205.39,0.03]
[1756662357061,3.54199397,205.4,205.39,0.03]
[1756662358069,0.67,205.4,205.39,0.03]
[1756662358245,3.54199397,205.4,205.39,0.03]
[1756662358970,6.82616095,205.4,205.39,0.03]
[1756662360949,11.69471012,205.4,205.39,0.03]
[1756662361265,49.17471012,205.4,205.39,0.03]
[1756662361656,3.28416698,205.4,205.39,0.03]
[1756662362069,4.00416698,205.4,205.39,0.03]
[1756662363882,3.28416698,205.4,205.39,0.03]
[1756662364088,0.06,205.41,205.39,0.03]
[1756662364089,3.34416698,205.41,205.39,0.03]
[1756662364455,0.72,205.4,205.39,0.03]
[1756662367060,4.00416698,205.4,205.39,0.03]
[1756662370283,3.59199397,205.4,205.39,0.03]
[1756662370442,6.87616095,205.4,205.39,0.03]
[1756662371080,49.22471012,205.4,205.39,0.03]
[1756662372783,51.17683412,205.4,205.39,0.03]
[1756662375986,51.23683412,205.4,205.39,0.03]
[1756662378870,48.36484015,205.4,205.39,0.03]
[1756662379071,51.23683412,205.4,205.39,0.03]
[1756662384871,77.23683412,205.4,205.39,0.03]
[1756662390002,13.59559401,205.39,205.37,0.03]
[1756662390198,13.59559401,205.39,205.34,0.03]
[1756662390199,40.35996985,205.37,205.34,0.03]
[1756662390495,2.87199397,205.35,205.34,0.03]
[1756662390788,32.15616095,205.35,205.34,0.03]
[1756662390972,32.87616095,205.35,205.34,0.03]
[1756662391174,47.52280995,205.35,205.34,0.03]
[1756662391694,52.39254454,205.35,205.34,0.03]
[1756662393308,64.56688103,205.35,205.25,0.33]
[1756662393504,2.87199397,205.26,205.25,0.33]
[1756662396485,37.48,205.29,205.25,0.33]
[1756662396688,2.87199397,205.26,205.23,0.33]
[1756662396998,2.87199397,205.26,205.24,0.33]
[1756662397198,2.87199397,205.26,205.25,0.33]
[1756662398310,2.87199397,205.27,205.25,0.33]
[1756662398712,2.87199397,205.27,205.23,4.8725244]
[1756662398912,2.87199397,205.27,205.25,0.33]
[1756662399485,2.87199397,205.26,205.25,0.33]
[1756662400515,2.87199397,205.26,205.24,0.33]
[1756662400715,2.87199397,205.26,205.25,0.33]
[1756662401399,2.87199397,205.26,205.22,0.33]
[1756662401605,2.87199397,205.26,205.2,28.24224301]
[1756662401606,2.87199397,205.25,205.23,0.33]
[1756662402327,2.87199397,205.25,205.24,0.33]
[1756662402496,2.87199397,205.26,205.24,0.33]
[1756662402690,2.87199397,205.26,205.23,0.33]
[1756662403818,2.87199397,205.25,205.21,5.20305686]
[1756662404119,2.87199397,205.25,205.22,0.33]
[1756662404304,2.87199397,205.25,205.23,0.33]
[1756662405025,2.87199397,205.25,205.23,5.20251708]
[1756662405327,38.16,205.29,205.24,0.33]
[1756662405617,2.87199397,205.26,205.24,0.33]
[1756662405804,134.4,205.31,205.25,0.33]
[1756662405999,2.87199397,205.28,205.25,0.33]
[1756662406200,2.87199397,205.28,205.26,0.33]
[1756662406403,2.87199397,205.28,205.23,9.74503408]
[1756662406404,2.87199397,205.27,205.23,10.07503408]
[1756662406602,2.87199397,205.27,205.24,0.33]
[1756662407092,2.87199397,205.26,205.24,5.20213265]
[1756662407716,2.87199397,205.27,205.25,0.33]
[1756662407915,2.87199397,205.27,205.24,5.20213265]
[1756662410137,3.55199397,205.29,205.24,5.20213265]
[1756662410331,0.68,205.28,205.24,5.20213265]
[1756662410637,3.55199397,205.29,205.24,5.20213265]
[1756662410939,0.68,205.28,205.24,5.20213265]
[1756662411331,0.06,205.27,205.24,5.20213265]
[1756662414915,0.06,205.27,205.24,7.74412662]
[1756662415115,0.06,205.27,205.24,8.07412662]
[1756662416340,0.06,205.27,205.24,4.87213265]
[1756662416560,0.06,205.27,205.24,5.20213265]
[1756662416838,0.06,205.27,205.24,8.07412662]
[1756662417041,0.06,205.27,205.24,5.20213265]
[1756662420432,0.68,205.26,205.23,0.03]
[1756662421540,0.68,205.26,205.23,4.90251691]
[1756662421719,0.74,205.27,205.23,4.90251691]
[1756662424843,0.74,205.27,205.23,4.40251691]
[1756662425043,0.06,205.27,205.24,0.33]
[1756662425252,0.06,205.27,205.24,3.20199397]
[1756662425745,0.06,205.27,205.24,2.87199397]
[1756662425926,0.7,205.26,205.23,4.40251691]
[1756662426129,0.76,205.27,205.23,4.40251691]
[1756662427054,0.76,205.27,205.23,7.27451088]
[1756662427352,0.76,205.27,205.23,7.60451088]
[1756662428148,0.7,205.26,205.23,4.40251691]
[1756662428350,0.7,205.25,205.23,4.40251691]
[1756662428856,0.7,205.25,205.23,4.43251691]
[1756662431258,0.7,205.25,205.23,3.93251691]
[1756662432636,0.7,205.24,205.23,0.03]
[1756662433747,0.7,205.25,205.23,0.03]
[1756662434255,3.57199397,205.24,205.23,0.03]
[1756662434840,6.86127864,205.24,205.23,0.03]
[1756662435049,14.63609164,205.24,205.23,0.03]
[1756662436157,11.76409767,205.24,205.23,0.03]
[1756662436359,14.63609164,205.24,205.23,0.03]
[1756662438961,11.76409767,205.24,205.23,0.03]
[1756662439267,205.17035296,205.26,205.23,3.23199397]
[1756662439268,33.29035296,205.26,205.23,3.23199397]
[1756662439450,33.29035296,205.26,205.24,2.87199397]
[1756662440165,33.29035296,205.26,205.23,17.87864397]
[1756662440466,33.29035296,205.26,205.24,4.87234457]
[1756662440771,33.29035296,205.26,205.24,22.72098854]
[1756662441262,33.29035296,205.26,205.24,22.39098854]
[1756662442070,33.29035296,205.26,205.25,7.74410115]
[1756662442865,33.29035296,205.26,205.25,36.31562916]
[1756662445687,33.35035296,205.26,205.25,36.31562916]
[1756662446282,8.86510904,205.26,205.25,62.31562916]
[1756662446483,0.06,205.27,205.26,13.59559401]
[1756662446781,0.06,205.27,205.26,16.79758798]
[1756662447078,0.06,205.27,205.26,18.74980798]
[1756662447585,0.06,205.27,205.26,23.6216778]
[1756662447779,0.06,205.27,205.26,61.0816778]
[1756662449876,1e-08,205.27,205.26,61.0816778]
[1756662450084,1e-08,205.27,205.26,73.05684066]
[1756662451373,1e-08,205.29,205.28,39.59559401]